Workbook

Sheet паспорт
A1: ПАТ "УКРТРАНСГАЗ" | G1: ПАСПОРТ ФІЗИКО-ХІМІЧНИХ ПОКАЗНИКІВ ПРИРОДНОГО ГАЗУ № 806
A2: Філія "УМГ "Черкаситрансгаз" | G2: переданого Барським ЛВУМГ та прийнятого ПАТ "Вінницягаз" та ДП "Монтажник" ТОВ "Валінор"
A3: Барський п/м Барське ЛВУМГ | G3: Маршрут №806
A4: Вимірювальна хіміко-аналітична лабораторія
A5: Свідоцтво № ПУ-0124/15 чинно до 20.10.2018 р. | K5: по газопроводу "СОЮЗ" | O5: УРЕНГОЙ-ПОМАРИ-УЖГОРОД | V5: за період з | X5: 2017-03-01 | Z5: по | AA5: 2017-03-31
A7: Число місяця | B7: Компонентний склад, % мол. | N7: Фізико-хімічні показники газу обчислені на основі компонентного складу, 101,325 кПа | X7: Температура точки роси за вологою (Р = 3.92 МПа), ºС | Y7: Температура точки роси за вуглеводнями, ºС | Z7: Вміст сірководню, г/м3 | AA7: Вміст меркаптанової сірки, г/м3 | AB7: Вміст механічних домішок, г/м3
N8: Густина абсолютна, кг/м3,при 20 ºС, | O8: Температура вимірювання/згоряння при 20/25°С
B9: метан, С1 | C9: етан, С2 | D9: пропан, С3 | E9: ізо-бутан, і-С4 | F9: н-бутан, н-С4 | G9: нео-пентан, нео-С5 | H9: ізо-пентан, і-С5 | I9: н-пентан, н-С5 | J9: гексани та вищі, С6+ | K9: кисень, О2 | L9: азот, N2 | M9: діоксид вуглецю, CО2 | O9: Теплота згоряння нижча | R9: Теплота згоряння вища | U9: Число Воббе вище
O10: ккал/м3 | P10: МДж/м3 | Q10: кВт⋅год/м3 | R10: ккал/м3 | S10: МДж/м3 | T10: кВт⋅год/м3 | U10: ккал/м3 | V10: МДж/м3 | W10: кВт⋅год/м3
A11: 1 | B11: 96.2856 | C11: 2.0373 | D11: 0.6265 | E11: 0.097 | F11: 0.0944 | G11: 0.0013 | H11: 0.0179 | I11: 0.012 | J11: 0.0114 | K11: 0.0064 | L11: 0.6599 | M11: 0.1503 | N11: 0.697 | O11: 8171 | P11: 34.21 | Q11: =P11/3.6 -> 9.502777778 | R11: 9062 | S11: 37.94 | T11: =S11/3.6 -> 10.53888889 | U11: 11912 | V11: 49.87 | W11: =V11/3.6 -> 13.85277778 | X11: -20.2 | AC11: =SUM(B11:M11)+$K$42+$N$42 -> 100
A12: 2 | B12: 96.2926 | C12: 2.0276 | D12: 0.622 | E12: 0.0956 | F12: 0.0931 | G12: 0.0013 | H12: 0.0174 | I12: 0.0116 | J12: 0.0107 | K12: 0.0072 | L12: 0.6738 | M12: 0.1472 | N12: 0.6969 | O12: 8168 | P12: 34.2 | Q12: 9.5 | R12: 9059 | S12: 37.93 | T12: =S12/3.6 -> 10.53611111 | U12: 11909 | V12: 49.86 | W12: =V12/3.6 -> 13.85 | X12: -20.8 | AC12: 100.0001
A13: 3 | B13: 96.1937 | C13: 2.0878 | D13: 0.6412 | E13: 0.0986 | F13: 0.0957 | G13: 0.0012 | H13: 0.0181 | I13: 0.0121 | J13: 0.0117 | K13: 0.0076 | L13: 0.6784 | M13: 0.154 | N13: 0.6977 | O13: 8175 | P13: 34.23 | Q13: 9.508333333 | R13: 9066 | S13: 37.96 | T13: 10.54444444 | U13: 11912 | V13: 49.87 | W13: =V13/3.6 -> 13.85277778 | X13: -20.3 | AC13: 100.0001 | AD13: =IF(AC13=100,"ОК"," ") -> 
A14: 4 | O14: 8175 | P14: 34.23 | Q14: 9.508333333 | R14: 9066 | S14: 37.96 | T14: 10.54444444 | W14: =V14/3.6 -> 0 | AC14: 0 | AD14: =IF(AC14=100,"ОК"," ") -> 
A15: 5 | O15: 8175 | P15: 34.23 | Q15: 9.508333333 | R15: 9066 | S15: 37.96 | T15: 10.54444444 | W15: =V15/3.6 -> 0 | AC15: 0
A16: 6 | B16: 96.0923 | C16: 2.1649 | D16: 0.6641 | E16: 0.102 | F16: 0.0994 | G16: 0.0013 | H16: 0.0188 | I16: 0.0125 | J16: 0.0121 | K16: 0.0074 | L16: 0.6644 | M16: 0.1607 | N16: 0.6986 | O16: 8185 | P16: 34.27 | Q16: 9.519444444 | R16: 9077 | S16: 38.02 | T16: 10.56111111 | U16: 11918 | V16: 49.9 | W16: =V16/3.6 -> 13.86111111 | X16: -21 | AC16: 99.9999
A17: 7 | B17: 96.041 | C17: 2.1918 | D17: 0.6775 | E17: 0.1043 | F17: 0.1014 | G17: 0.0013 | H17: 0.0189 | I17: 0.0127 | J17: 0.0116 | K17: 0.0076 | L17: 0.6722 | M17: 0.1596 | N17: 0.699 | O17: 8189 | P17: 34.28 | Q17: 9.522222222 | R17: 9080 | S17: 38.02 | T17: 10.56111111 | U17: 11920 | V17: 49.9 | W17: =V17/3.6 -> 13.86111111 | AC17: 99.9999
A18: 8 | O18: 8189 | P18: 34.28 | Q18: 9.522222222 | R18: 9080 | S18: 38.02 | T18: 10.56111111 | W18: 0 | AC18: 0
A19: 9 | B19: 95.8818 | C19: 2.3003 | D19: 0.7091 | E19: 0.1094 | F19: 0.1069 | G19: 0.0014 | H19: 0.0203 | I19: 0.0135 | J19: 0.0124 | K19: 0.0103 | L19: 0.6644 | M19: 0.1703 | N19: 0.7004 | O19: 8202 | P19: 34.34 | Q19: 9.538888889 | R19: 9094 | S19: 38.08 | T19: 10.57777778 | U19: 11926 | V19: 49.93 | W19: =V19/3.6 -> 13.86944444 | X19: -21.4 | Z19: 0 | AA19: 0 | AB19: 0 | AC19: 100.0001
A20: 10 | B20: 95.8097 | C20: 2.3469 | D20: 0.7313 | E20: 0.1128 | F20: 0.1102 | G20: 0.0013 | H20: 0.0208 | I20: 0.0138 | J20: 0.012 | K20: 0.0101 | L20: 0.656 | M20: 0.1749 | N20: 0.701 | O20: 8209 | P20: 34.37 | Q20: =P20/3.6 -> 9.547222222 | R20: 9102 | S20: 38.11 | T20: =S20/3.6 -> 10.58611111 | U20: 11931 | V20: 49.95 | W20: 13.875 | X20: -20.9 | AC20: 99.9998
A21: 11 | O21: 8209 | P21: 34.37 | Q21: 9.547222222 | R21: 9102 | S21: 38.11 | T21: 10.58611111 | W21: 0 | AC21: 0
A22: 12 | O22: 8209 | P22: 34.37 | Q22: 9.547222222 | R22: 9102 | S22: 38.11 | T22: 10.58611111 | W22: 0 | AC22: 0
A23: 13 | B23: 95.9017 | C23: 2.263 | D23: 0.7025 | E23: 0.1105 | F23: 0.1071 | G23: 0.0013 | H23: 0.0206 | I23: 0.0137 | J23: 0.0119 | K23: 0.0131 | L23: 0.6879 | M23: 0.1667 | N23: 0.7002 | O23: 8197 | P23: 34.32 | Q23: 9.533333333 | R23: 9089 | S23: 38.05 | T23: 10.56944444 | U23: 11921 | V23: 49.91 | W23: 13.86388889 | X23: -20.5 | AC23: 100 | AD23: ОК
A24: 14 | B24: 95.935 | C24: 2.2463 | D24: 0.7014 | E24: 0.1111 | F24: 0.1073 | G24: 0.0013 | H24: 0.0213 | I24: 0.0141 | J24: 0.0152 | K24: 0.0098 | L24: 0.6746 | M24: 0.1625 | N24: 0.7001 | O24: 8199 | P24: 34.33 | Q24: 9.536111111 | R24: 9091 | S24: 38.06 | T24: 10.57222222 | U24: 11925 | V24: 49.93 | W24: 13.86944444 | X24: -20.5 | AC24: 99.9999
A25: 15 | B25: 95.8998 | C25: 2.2904 | D25: 0.7112 | E25: 0.1119 | F25: 0.1083 | G25: 0.0013 | H25: 0.021 | I25: 0.014 | J25: 0.0132 | K25: 0.0059 | L25: 0.6546 | M25: 0.1685 | N25: 0.7004 | O25: 8204 | P25: 34.35 | Q25: 9.541666667 | R25: 9097 | S25: 38.09 | T25: 10.58055556 | U25: 11929 | V25: 49.95 | W25: 13.875 | X25: -20.8 | AC25: 100.0001
A26: 16 | B26: 95.8934 | C26: 2.2827 | D26: 0.7049 | E26: 0.1101 | F26: 0.1067 | G26: 0.0013 | H26: 0.0206 | I26: 0.0137 | J26: 0.0139 | K26: 0.0097 | L26: 0.6736 | M26: 0.1693 | N26: 0.7003 | O26: 8200 | P26: 34.33 | Q26: =P26/3.6 -> 9.536111111 | R26: 9093 | S26: 38.07 | T26: =S26/3.6 -> 10.575 | U26: 11924 | V26: 49.92 | W26: 13.86666667 | X26: -20.7 | AC26: 99.9999
A27: 17 | B27: 95.865 | C27: 2.3008 | D27: 0.7097 | E27: 0.111 | F27: 0.1076 | G27: 0.0013 | H27: 0.0209 | I27: 0.0141 | J27: 0.0146 | K27: 0.0088 | L27: 0.6755 | M27: 0.1708 | N27: 0.7006 | O27: 8202 | P27: 34.34 | Q27: 9.538888889 | R27: 9095 | S27: 38.08 | T27: 10.57777778 | U27: 11925 | V27: 49.93 | W27: 13.86944444 | X27: -20.8 | AC27: 100.0001
A28: 18 | O28: 8202 | P28: 34.34 | Q28: 9.538888889 | R28: 9095 | S28: 38.08 | T28: 10.57777778 | W28: =V28/3.6 -> 0 | AC28: 0
A29: 19 | O29: 8202 | P29: 34.34 | Q29: 9.538888889 | R29: 9095 | S29: 38.08 | T29: 10.57777778 | W29: 0 | AC29: 0
A30: 20 | B30: 95.7118 | C30: 2.427 | D30: 0.7592 | E30: 0.1188 | F30: 0.1152 | G30: 0.0014 | H30: 0.0217 | I30: 0.0144 | J30: 0.0125 | K30: 0.009 | L30: 0.6349 | M30: 0.174 | N30: 0.702 | O30: 8222 | P30: 34.42 | Q30: 9.561111111 | R30: 9116 | S30: 38.17 | T30: 10.60277778 | U30: 11941 | V30: 49.99 | W30: 13.88611111 | X30: -21 | AC30: 99.9999 | AD30: =IF(AC30=100,"ОК"," ") -> 
A31: 21 | B31: 95.6847 | C31: 2.4284 | D31: 0.7651 | E31: 0.121 | F31: 0.1172 | G31: 0.0014 | H31: 0.0223 | I31: 0.015 | J31: 0.0132 | K31: 0.0105 | L31: 0.6477 | M31: 0.1737 | N31: 0.7022 | O31: 8223 | P31: 34.43 | Q31: 9.563888889 | R31: 9117 | S31: 38.17 | T31: 10.60277778 | U31: 11940 | V31: 49.99 | W31: 13.88611111 | X31: -20.3 | AC31: 100.0002
A32: 22 | B32: 95.5874 | C32: 2.4908 | D32: 0.7857 | E32: 0.1247 | F32: 0.1207 | G32: 0.0015 | H32: 0.023 | I32: 0.0154 | J32: 0.0149 | K32: 0.009 | L32: 0.6446 | M32: 0.1822 | N32: 0.7031 | O32: 8231 | P32: 34.46 | Q32: 9.572222222 | R32: 9126 | S32: 38.21 | T32: 10.61388889 | U32: 11944 | V32: 50.01 | W32: 13.89166667 | X32: -20.9 | AC32: 99.9999
A33: 23 | B33: 95.7633 | C33: 2.3699 | D33: 0.7487 | E33: 0.1198 | F33: 0.1153 | G33: 0.0014 | H33: 0.0224 | I33: 0.0151 | J33: 0.0145 | K33: 0.0111 | L33: 0.6521 | M33: 0.1663 | N33: 0.7016 | O33: 8217 | P33: 34.4 | Q33: =P33/3.6 -> 9.555555556 | R33: 9111 | S33: 38.15 | T33: =S33/3.6 -> 10.59722222 | U33: 11937 | V33: 49.98 | W33: 13.88333333 | X33: -20.9 | AC33: 99.9999 | AD33: =IF(AC33=100,"ОК"," ") -> 
A34: 24 | B34: 95.5157 | C34: 2.5529 | D34: 0.8079 | E34: 0.1279 | F34: 0.1236 | G34: 0.0015 | H34: 0.0235 | I34: 0.0157 | J34: 0.0155 | K34: 0.0065 | L34: 0.6178 | M34: 0.1915 | N34: 0.7039 | O34: 8241 | P34: 34.5 | Q34: 9.583333333 | R34: 9136 | S34: 38.25 | T34: 10.625 | U34: 11952 | V34: 50.04 | W34: 13.9 | X34: -21.2 | AC34: 100 | AD34: ОК
A35: 25 | O35: 8241 | P35: 34.5 | Q35: 9.583333333 | R35: 9136 | S35: 38.25 | T35: 10.625 | W35: =V35/3.6 -> 0 | AC35: 0
A36: 26 | O36: 8241 | P36: 34.5 | Q36: 9.583333333 | R36: 9136 | S36: 38.25 | T36: =S36/3.6 -> 10.625 | W36: 0 | AC36: 0
A37: 27 | B37: 95.3556 | C37: 2.6598 | D37: 0.8441 | E37: 0.1356 | F37: 0.1306 | G37: 0.0016 | H37: 0.0249 | I37: 0.0165 | J37: 0.0152 | K37: 0.0078 | L37: 0.6119 | M37: 0.1964 | N37: 0.7052 | O37: 8255 | P37: 34.56 | Q37: 9.6 | R37: 9151 | S37: 38.32 | T37: 10.64444444 | U37: 11960 | V37: 50.07 | W37: 13.90833333 | X37: -21 | AC37: 100 | AD37: ОК
A38: 28 | B38: 95.5428 | C38: 2.5242 | D38: 0.8002 | E38: 0.1288 | F38: 0.1237 | G38: 0.0015 | H38: 0.0236 | I38: 0.0158 | J38: 0.0155 | K38: 0.0089 | L38: 0.633 | M38: 0.1819 | N38: 0.7036 | O38: 8238 | P38: 34.49 | Q38: 9.580555556 | R38: 9133 | S38: 38.24 | T38: 10.62222222 | U38: 11949 | V38: 50.03 | W38: 13.89722222 | X38: -20.7 | AC38: 99.9999
A39: 29 | B39: 95.4211 | C39: 2.6166 | D39: 0.8268 | E39: 0.1303 | F39: 0.1265 | G39: 0.0015 | H39: 0.0239 | I39: 0.0157 | J39: 0.014 | K39: 0.0094 | L39: 0.6226 | M39: 0.1916 | N39: 0.7046 | O39: 8247 | P39: 34.53 | Q39: 9.591666667 | R39: 9143 | S39: 38.28 | T39: =S39/3.6 -> 10.63333333 | U39: 11955 | V39: 50.05 | W39: 13.90277778 | X39: -21.4 | AC39: 100 | AD39: ОК
A40: 30 | B40: 95.4058 | C40: 2.6224 | D40: 0.831 | E40: 0.132 | F40: 0.1276 | G40: 0.0015 | H40: 0.0242 | I40: 0.0161 | J40: 0.0154 | K40: 0.0087 | L40: 0.6215 | M40: 0.1938 | N40: 0.7048 | O40: 8249 | P40: 34.54 | Q40: 9.594444444 | R40: 9145 | S40: 38.29 | T40: =S40/3.6 -> 10.63611111 | U40: 11956 | V40: 50.06 | W40: 13.90555556 | X40: -20.8 | AC40: 100
A41: 31 | B41: 95.2543 | C41: 2.7132 | D41: 0.8565 | E41: 0.1341 | F41: 0.1303 | G41: 0.0015 | H41: 0.0244 | I41: 0.0162 | J41: 0.0148 | K41: 0.0127 | L41: 0.6379 | M41: 0.204 | N41: 0.7059 | O41: 8256 | P41: 34.57 | Q41: 9.602777778 | R41: 9153 | S41: 38.32 | T41: 10.64444444 | U41: 11956 | V41: 50.06 | W41: 13.90555556 | X41: -21.7 | AC41: 99.9999
B42: Рівень одоризації відповідає чинним нормативним документам | O42: 8210 | P42: 34.38 | Q42: 9.55 | R42: 9102 | S42: 38.11 | T42: 10.59
H43: Середньозважене значення теплоти згоряння:
B46: Начальник управління Барського ЛВУМГ Мандра В.В.
C47: Підрозділу підприємства, якому підпорядкована лабораторія | O47: прізвище | R47: підпис
B48: Начальник лабораторії Ільницька Г.О.
C49: Лабораторія, де здійснювалось вимірювання газу | O49: прізвище | R49: підпис

Sheet variablesList (hidden)
A1: 3 | B1: x:\gaysin | C1: 10, 11, 24, 25, 127, 128, 132, 180, 207, 215 | D1: x:\
B2: x:\Illinci
B3: x:\Talne

Sheet додаток
A2: Додаток до Паспорту фізико-хімічних показників природного газу №806
A4: Область | B4: ГРС, прямий споживач | C4: Cередньозважене значення вищої теплоти згоряння
C5: МДж/м³ | D5: ккал/м³ | E5: кВт*год./м³
A6: Вінницька область | B6: ГРС Мартинівка | C6: ='[1]розрахунок №806'!$C40 -> 38.10717469 | D6: ='[1]розрахунок №806'!$C41 -> 9101.742436 | E6: ='[1]розрахунок №806'!$C42 -> 10.5853263
B7: ГРС Мурафа | C7: ='[1]розрахунок №806'!$D40 -> 38.10627498 | D7: ='[1]розрахунок №806'!$D41 -> 9101.527544 | E7: ='[1]розрахунок №806'!$D42 -> 10.58507638
B8: ГРС Літин | C8: ='[1]розрахунок №806'!$E40 -> 38.10682713 | D8: ='[1]розрахунок №806'!$E41 -> 9101.659422 | E8: ='[1]розрахунок №806'!$E42 -> 10.58522976
B9: ГРС Пасинки | C9: ='[1]розрахунок №806'!$F40 -> 38.1054973 | D9: ='[1]розрахунок №806'!$F41 -> 9101.341797 | E9: ='[1]розрахунок №806'!$F42 -> 10.58486036
B10: ГРС Сьомаки | C10: ='[1]розрахунок №806'!$G40 -> 38.10905138 | D10: ='[1]розрахунок №806'!$G41 -> 9102.190676 | E10: ='[1]розрахунок №806'!$G42 -> 10.58584761
A11: Середньозважене значення вищої теплоти згоряння по маршруту № 806 | C11: =AVERAGEIF(C6:C10,">0",C6:C10) -> 38.1069651 | D11: =AVERAGEIF(D6:D10,">0",D6:D10) -> 9101.692375 | E11: 10.58526808
A15: Начальник управління Барського ЛВУМГ Мандра В,В.
A16: Підрозділу підприємства, якому підпорядкована лабораторія | D16: прізвище | E16: підпис | F16: дата
A17: Начальник лабораторії Ільницька Г.І.
A18: Лабораторія, де здійснювалось вимірювання газу | D18: прізвище | E18: підпис | F18: дата
